{"text_format":"1","workbook":"xlsx","n_sheets":1,"sheets":["HIST. OPERAÇÕES"],"not_rendered":{"charts":0,"images":0,"macros":0,"external_links":0,"defined_names":0,"comments":0,"pivot_tables":0},"unopened":[],"bounds":{"document_bytes":16777216,"sheet_cells":100000,"rows_first":2000,"rows_last":500,"rows_between":2000,"halvings":0,"cell_chars":16384,"cell_head_chars":4096},"cells_cut":0,"cells_raw":0,"read":"whole","date_system":"1900"}

{"sheet":"HIST. OPERAÇÕES","index":0,"n_rows":24,"n_cols":39,"rows_kept":24,"cut":false,"hidden":false,"merged":[]}
[]
[]
[]
[]
[]
[]
[]
[]
[null,"Histórico de Operações",null,null,{"$f":"COUNTIF(TB_HistoricoOperacoes[Data - Entrada],\"<>\")+COUNTIF(TB_HistoricoOperacoes[Data - Saída],\"<>\")","v":26}]
[null,"Registro","Data - Entrada","Corretora","Nota (E)","Data - Saída","Nota (S)","Mês - Saída","Ano",null,null,null,null,null,"Resultado"]
[null,{"$f":"ROW()-ROW(TB_HistoricoOperacoes[[#Headers],[Registro]])","v":1},44285,"Genial Investimentos",null,null,null,{"$f":"PROPER(IF(TB_HistoricoOperacoes[[#This Row],[Data - Saída]]<>\"\",TEXT(TB_HistoricoOperacoes[[#This Row],[Data - Saída]],\"MMMM\"),\"-\"))","v":"-"},{"$f":"IF(TB_HistoricoOperacoes[[#This Row],[Data - Saída]]=\"\",\"-\",YEAR(TB_HistoricoOperacoes[[#This Row],[Data - Saída]]))","v":"-"},null,1200,"3 Ocorrências","3 Corretoras iguais","3 Datas iguais",1]
[null,{"$f":"ROW()-ROW(TB_HistoricoOperacoes[[#Headers],[Registro]])","v":2},44284,"Genial Investimentos",1200,44284,1200,{"$f":"PROPER(IF(TB_HistoricoOperacoes[[#This Row],[Data - Saída]]<>\"\",TEXT(TB_HistoricoOperacoes[[#This Row],[Data - Saída]],\"MMMM\"),\"-\"))","v":"Março"},{"$f":"IF(TB_HistoricoOperacoes[[#This Row],[Data - Saída]]=\"\",\"-\",YEAR(TB_HistoricoOperacoes[[#This Row],[Data - Saída]]))","v":2021},null,1044,"3 Ocorrências","3 Corretoras iguais","2 datas diferentes, 1 igual",2]
[null,{"$f":"ROW()-ROW(TB_HistoricoOperacoes[[#Headers],[Registro]])","v":3},44281,"Genial Investimentos",1044,44284,1650,{"$f":"PROPER(IF(TB_HistoricoOperacoes[[#This Row],[Data - Saída]]<>\"\",TEXT(TB_HistoricoOperacoes[[#This Row],[Data - Saída]],\"MMMM\"),\"-\"))","v":"Março"},{"$f":"IF(TB_HistoricoOperacoes[[#This Row],[Data - Saída]]=\"\",\"-\",YEAR(TB_HistoricoOperacoes[[#This Row],[Data - Saída]]))","v":2021},null,1135,"3 Ocorrências","3 Corretoras iguais","Três datas diferentes",3]
[null,{"$f":"ROW()-ROW(TB_HistoricoOperacoes[[#Headers],[Registro]])","v":4},44237,"Modal Mais",2103,44296,1344,{"$f":"PROPER(IF(TB_HistoricoOperacoes[[#This Row],[Data - Saída]]<>\"\",TEXT(TB_HistoricoOperacoes[[#This Row],[Data - Saída]],\"MMMM\"),\"-\"))","v":"Abril"},{"$f":"IF(TB_HistoricoOperacoes[[#This Row],[Data - Saída]]=\"\",\"-\",YEAR(TB_HistoricoOperacoes[[#This Row],[Data - Saída]]))","v":2021},null,1267,"1 Ocorrência",null,null,1]
[null,{"$f":"ROW()-ROW(TB_HistoricoOperacoes[[#Headers],[Registro]])","v":5},44237,"BTG Pactual",2103,null,null,{"$f":"PROPER(IF(TB_HistoricoOperacoes[[#This Row],[Data - Saída]]<>\"\",TEXT(TB_HistoricoOperacoes[[#This Row],[Data - Saída]],\"MMMM\"),\"-\"))","v":"-"},{"$f":"IF(TB_HistoricoOperacoes[[#This Row],[Data - Saída]]=\"\",\"-\",YEAR(TB_HistoricoOperacoes[[#This Row],[Data - Saída]]))","v":"-"},null,1239,"2 Ocorrências","2 Corretoras iguais","2 datas diferentes",2]
[null,{"$f":"ROW()-ROW(TB_HistoricoOperacoes[[#Headers],[Registro]])","v":6},44237,"XP Investimentos",1650,44297,2103,{"$f":"PROPER(IF(TB_HistoricoOperacoes[[#This Row],[Data - Saída]]<>\"\",TEXT(TB_HistoricoOperacoes[[#This Row],[Data - Saída]],\"MMMM\"),\"-\"))","v":"Abril"},{"$f":"IF(TB_HistoricoOperacoes[[#This Row],[Data - Saída]]=\"\",\"-\",YEAR(TB_HistoricoOperacoes[[#This Row],[Data - Saída]]))","v":2021},null,1344,"2 Ocorrências","2 Corretoras diferentes","2 datas diferentes",2]
[null,{"$f":"ROW()-ROW(TB_HistoricoOperacoes[[#Headers],[Registro]])","v":7},44279,"Genial Investimentos",1044,44284,1200,{"$f":"PROPER(IF(TB_HistoricoOperacoes[[#This Row],[Data - Saída]]<>\"\",TEXT(TB_HistoricoOperacoes[[#This Row],[Data - Saída]],\"MMMM\"),\"-\"))","v":"Março"},{"$f":"IF(TB_HistoricoOperacoes[[#This Row],[Data - Saída]]=\"\",\"-\",YEAR(TB_HistoricoOperacoes[[#This Row],[Data - Saída]]))","v":2021},null,1265,"2 Ocorrências","2 Corretoras diferentes","2 Datas iguais",2]
[null,{"$f":"ROW()-ROW(TB_HistoricoOperacoes[[#Headers],[Registro]])","v":8},44277,"Genial Investimentos",1135,44281,1044,{"$f":"PROPER(IF(TB_HistoricoOperacoes[[#This Row],[Data - Saída]]<>\"\",TEXT(TB_HistoricoOperacoes[[#This Row],[Data - Saída]],\"MMMM\"),\"-\"))","v":"Março"},{"$f":"IF(TB_HistoricoOperacoes[[#This Row],[Data - Saída]]=\"\",\"-\",YEAR(TB_HistoricoOperacoes[[#This Row],[Data - Saída]]))","v":2021},null,1650,"3 Ocorrências","2 Corretoras iguais, 1 diferente","3 Datas diferentes",3]
[null,{"$f":"ROW()-ROW(TB_HistoricoOperacoes[[#Headers],[Registro]])","v":9},44272,"Genial Investimentos",1267,44274,1135,{"$f":"PROPER(IF(TB_HistoricoOperacoes[[#This Row],[Data - Saída]]<>\"\",TEXT(TB_HistoricoOperacoes[[#This Row],[Data - Saída]],\"MMMM\"),\"-\"))","v":"Março"},{"$f":"IF(TB_HistoricoOperacoes[[#This Row],[Data - Saída]]=\"\",\"-\",YEAR(TB_HistoricoOperacoes[[#This Row],[Data - Saída]]))","v":2021},null,1293,"2 Ocorrências","2 Corretoras iguais","2 Datas iguais",1]
[null,{"$f":"ROW()-ROW(TB_HistoricoOperacoes[[#Headers],[Registro]])","v":10},44271,"Genial Investimentos",1239,44273,1293,{"$f":"PROPER(IF(TB_HistoricoOperacoes[[#This Row],[Data - Saída]]<>\"\",TEXT(TB_HistoricoOperacoes[[#This Row],[Data - Saída]],\"MMMM\"),\"-\"))","v":"Março"},{"$f":"IF(TB_HistoricoOperacoes[[#This Row],[Data - Saída]]=\"\",\"-\",YEAR(TB_HistoricoOperacoes[[#This Row],[Data - Saída]]))","v":2021},null,1271,"1 Ocorrência",null,null,1]
[null,{"$f":"ROW()-ROW(TB_HistoricoOperacoes[[#Headers],[Registro]])","v":11},44270,"Genial Investimentos",1344,44273,1293,{"$f":"PROPER(IF(TB_HistoricoOperacoes[[#This Row],[Data - Saída]]<>\"\",TEXT(TB_HistoricoOperacoes[[#This Row],[Data - Saída]],\"MMMM\"),\"-\"))","v":"Março"},{"$f":"IF(TB_HistoricoOperacoes[[#This Row],[Data - Saída]]=\"\",\"-\",YEAR(TB_HistoricoOperacoes[[#This Row],[Data - Saída]]))","v":2021},null,2103,"3 Ocorrências","3 Corretoras diferentes","2 Datas iguais, 1 diferente",3]
[null,{"$f":"ROW()-ROW(TB_HistoricoOperacoes[[#Headers],[Registro]])","v":12},44263,"BTG Pactual",1265,44266,1271,{"$f":"PROPER(IF(TB_HistoricoOperacoes[[#This Row],[Data - Saída]]<>\"\",TEXT(TB_HistoricoOperacoes[[#This Row],[Data - Saída]],\"MMMM\"),\"-\"))","v":"Março"},{"$f":"IF(TB_HistoricoOperacoes[[#This Row],[Data - Saída]]=\"\",\"-\",YEAR(TB_HistoricoOperacoes[[#This Row],[Data - Saída]]))","v":2021},null,null,null,null,"Total",{"$f":"SUM(O11:O21)","v":21}]
[null,{"$f":"ROW()-ROW(TB_HistoricoOperacoes[[#Headers],[Registro]])","v":13},44259,"Genial Investimentos",1135,44263,1265,{"$f":"PROPER(IF(TB_HistoricoOperacoes[[#This Row],[Data - Saída]]<>\"\",TEXT(TB_HistoricoOperacoes[[#This Row],[Data - Saída]],\"MMMM\"),\"-\"))","v":"Março"},{"$f":"IF(TB_HistoricoOperacoes[[#This Row],[Data - Saída]]=\"\",\"-\",YEAR(TB_HistoricoOperacoes[[#This Row],[Data - Saída]]))","v":2021},null,null,null,null,null,null,null,null,null,null,null,null,null,null,null,null,null,null,null,null,null,null,null,null,null,null,""]
[null,{"$f":"ROW()-ROW(TB_HistoricoOperacoes[[#Headers],[Registro]])","v":14},44252,"Genial Investimentos",1650,44265,1239,{"$f":"PROPER(IF(TB_HistoricoOperacoes[[#This Row],[Data - Saída]]<>\"\",TEXT(TB_HistoricoOperacoes[[#This Row],[Data - Saída]],\"MMMM\"),\"-\"))","v":"Março"},{"$f":"IF(TB_HistoricoOperacoes[[#This Row],[Data - Saída]]=\"\",\"-\",YEAR(TB_HistoricoOperacoes[[#This Row],[Data - Saída]]))","v":2021},null,null,null,null,null,null,null,null,null,null,null,null,null,null,null,null,null,null,null,null,"",null,null,null,null,null,null,null,null,""]